[Event "*** Titled Tuesday Blitz"]
[Site "Chess.com"]
[Date "2021.03.16"]
[Round "6"]
[White "ARTHURMOTIVATOR"]
[Black "FMJoseHerrera"]
[Result "1-0"]
[WhiteElo "2377"]
[BlackElo "2523"]
[TimeControl "180+1"]
[EndTime "11:04:29 PDT"]
[Termination "ARTHURMOTIVATOR won by checkmate"]

1. e4 {[%clk 0:03:00.9]} 1... c5 {[%clk 0:02:59.4]} 2. b3 {[%clk 0:03:00.4]}
2... e6 {[%clk 0:02:57.4]} 3. Bb2 {[%clk 0:03:00]} 3... a6 {[%clk 0:02:57.5]} 4.
Nf3 {[%clk 0:02:59.3]} 4... Qc7 {[%clk 0:02:57.5]} 5. d4 {[%clk 0:02:54.4]} 5...
cxd4 {[%clk 0:02:56.9]} 6. Nxd4 {[%clk 0:02:54.4]} 6... b6 {[%clk 0:02:56.1]} 7.
Bd3 {[%clk 0:02:51.6]} 7... Bb7 {[%clk 0:02:55.7]} 8. O-O {[%clk 0:02:50.5]}
8... d6 {[%clk 0:02:55.2]} 9. c3 {[%clk 0:02:46.3]} 9... Nd7 {[%clk 0:02:52.3]}
10. Nd2 {[%clk 0:02:45.8]} 10... Ngf6 {[%clk 0:02:49.7]} 11. Qe2 {[%clk
0:02:44.5]} 11... Be7 {[%clk 0:02:37.5]} 12. Rae1 {[%clk 0:02:41.8]} 12... Rc8
{[%clk 0:02:33.6]} 13. c4 {[%clk 0:02:39.6]} 13... h5 {[%clk 0:02:26.6]} 14. Kh1
{[%clk 0:02:36.7]} 14... h4 {[%clk 0:02:25.9]} 15. h3 {[%clk 0:02:32.7]} 15...
Qb8 {[%clk 0:02:23.5]} 16. N2f3 {[%clk 0:02:17]} 16... Nh5 {[%clk 0:02:21.4]}
17. Qd2 {[%clk 0:02:09.4]} 17... Ne5 {[%clk 0:02:18.4]} 18. Bc2 {[%clk
0:01:45.1]} 18... Rg8 {[%clk 0:01:35.8]} 19. Ng5 {[%clk 0:01:40.6]} 19... Ng6
{[%clk 0:01:15.1]} 20. e5 {[%clk 0:01:29.3]} 20... Nxe5 {[%clk 0:01:05.3]} 21.
Ndxe6 {[%clk 0:01:24]} 21... fxe6 {[%clk 0:00:42.9]} 22. Rxe5 {[%clk 0:01:14.6]}
22... dxe5 {[%clk 0:00:27.2]} 23. Bg6+ {[%clk 0:01:10.9]} 23... Kf8 {[%clk
0:00:26.7]} 24. Nxe6# {[%clk 0:01:09.3]} 1-0

[Event "*** Titled Tuesday Blitz"]
[Site "Chess.com"]
[Date "2021.03.16"]
[Round "6"]
[White "vovachesss"]
[Black "Fandorine"]
[Result "0-1"]
[WhiteElo "2745"]
[BlackElo "2880"]
[TimeControl "180+1"]
[EndTime "11:04:34 PDT"]
[Termination "Fandorine won by resignation"]

1. Nf3 {[%clk 0:03:00.9]} 1... Nf6 {[%clk 0:02:59.9]} 2. g3 {[%clk 0:02:59.6]}
2... b6 {[%clk 0:02:59.2]} 3. Bg2 {[%clk 0:02:59.5]} 3... Bb7 {[%clk 0:02:59.9]}
4. O-O {[%clk 0:02:59.5]} 4... g6 {[%clk 0:03:00.5]} 5. b3 {[%clk 0:02:58.2]}
5... Bg7 {[%clk 0:03:00.7]} 6. Bb2 {[%clk 0:02:58.9]} 6... c5 {[%clk 0:02:59.8]}
7. c4 {[%clk 0:02:58.7]} 7... O-O {[%clk 0:02:59.9]} 8. Nc3 {[%clk 0:02:56.7]}
8... d6 {[%clk 0:03:00.2]} 9. d4 {[%clk 0:02:54.8]} 9... cxd4 {[%clk 0:03:00]}
10. Qxd4 {[%clk 0:02:51]} 10... Nbd7 {[%clk 0:03:00.1]} 11. Rfd1 {[%clk
0:02:49.5]} 11... Rc8 {[%clk 0:03:00.1]} 12. Rac1 {[%clk 0:02:49.3]} 12... Rc5
{[%clk 0:02:59.9]} 13. Qd3 {[%clk 0:02:38.6]} 13... Qa8 {[%clk 0:02:55.4]} 14.
h3 {[%clk 0:02:25.5]} 14... Re8 {[%clk 0:02:54]} 15. Ne1 {[%clk 0:02:12.2]}
15... a6 {[%clk 0:02:44]} 16. b4 {[%clk 0:01:56]} 16... Ne5 {[%clk 0:02:37]} 17.
Qd2 {[%clk 0:01:36.7]} 17... Nxc4 {[%clk 0:02:22.7]} 18. Bxb7 {[%clk 0:01:29.9]}
18... Qxb7 {[%clk 0:02:19.7]} 19. Qf4 {[%clk 0:01:18.3]} 19... Nxb2 {[%clk
0:02:10.2]} 20. bxc5 {[%clk 0:01:16.5]} 20... Nxd1 {[%clk 0:02:10.6]} 21. c6
{[%clk 0:01:10.8]} 21... Qxc6 {[%clk 0:02:00.4]} 22. Nxd1 {[%clk 0:01:10.6]}
22... Qd7 {[%clk 0:01:52.8]} 23. g4 {[%clk 0:01:02.4]} 23... Rc8 {[%clk
0:01:48.7]} 24. Rxc8+ {[%clk 0:00:59.2]} 24... Qxc8 {[%clk 0:01:47.6]} 25. Nd3
{[%clk 0:01:00.1]} 25... h5 {[%clk 0:01:47.2]} 26. g5 {[%clk 0:00:55.3]} 26...
Nd5 {[%clk 0:01:42.3]} 27. Qe4 {[%clk 0:00:54.9]} 27... e6 {[%clk 0:01:39.8]}
28. Ne3 {[%clk 0:00:52.1]} 28... Nc3 {[%clk 0:01:35]} 29. Qb4 {[%clk 0:00:46.1]}
29... Qc6 {[%clk 0:01:19.9]} 30. Nc4 {[%clk 0:00:41.1]} 30... Nxe2+ {[%clk
0:01:16.6]} 31. Kf1 {[%clk 0:00:41.2]} 31... Nd4 {[%clk 0:01:16.5]} 0-1

[Event "*** Titled Tuesday Blitz"]
[Site "Chess.com"]
[Date "2021.03.16"]
[Round "6"]
[White "PavelChernomordik"]
[Black "rachidhuilda"]
[Result "1-0"]
[WhiteElo "2400"]
[BlackElo "2286"]
[TimeControl "180+1"]
[EndTime "11:04:46 PDT"]
[Termination "PavelChernomordik won on time"]

1. e4 {[%clk 0:03:00.9]} 1... d5 {[%clk 0:02:57.2]} 2. exd5 {[%clk 0:03:00.4]}
2... Qxd5 {[%clk 0:02:57.7]} 3. Nc3 {[%clk 0:03:00]} 3... Qa5 {[%clk 0:02:57.5]}
4. Bc4 {[%clk 0:02:59.5]} 4... c6 {[%clk 0:02:57.9]} 5. Qe2 {[%clk 0:02:58.1]}
5... Nf6 {[%clk 0:02:57.9]} 6. Nf3 {[%clk 0:02:57.7]} 6... Bf5 {[%clk
0:02:53.6]} 7. d3 {[%clk 0:02:55.6]} 7... e6 {[%clk 0:02:53.1]} 8. Bd2 {[%clk
0:02:53.6]} 8... Qc7 {[%clk 0:02:51.5]} 9. Nd4 {[%clk 0:02:48.9]} 9... Be7
{[%clk 0:02:19.2]} 10. Nxf5 {[%clk 0:02:45.7]} 10... exf5 {[%clk 0:02:18.1]} 11.
O-O-O {[%clk 0:02:45]} 11... O-O {[%clk 0:02:18]} 12. Qf3 {[%clk 0:02:42.8]}
12... g6 {[%clk 0:02:16.1]} 13. Bh6 {[%clk 0:02:36.9]} 13... Re8 {[%clk
0:02:14.9]} 14. Rde1 {[%clk 0:02:36.1]} 14... Nbd7 {[%clk 0:02:09.4]} 15. d4
{[%clk 0:02:30.2]} 15... Bf8 {[%clk 0:02:05.4]} 16. Bf4 {[%clk 0:02:26.3]} 16...
Bd6 {[%clk 0:02:03.3]} 17. Bg5 {[%clk 0:02:25.7]} 17... Bb4 {[%clk 0:01:54.3]}
18. Bf4 {[%clk 0:02:19.3]} 18... Qa5 {[%clk 0:01:35.1]} 19. Bd2 {[%clk
0:02:11.5]} 19... Ne4 {[%clk 0:01:07.5]} 20. Nxe4 {[%clk 0:02:06.3]} 20... fxe4
{[%clk 0:01:07.5]} 21. Qxf7+ {[%clk 0:02:03.6]} 21... Kh8 {[%clk 0:01:06.2]} 22.
c3 {[%clk 0:01:51.2]} 22... Be7 {[%clk 0:00:59.1]} 23. Rxe4 {[%clk 0:01:39.4]}
23... Qd8 {[%clk 0:00:36.5]} 24. Rhe1 {[%clk 0:01:35.3]} 24... Nb6 {[%clk
0:00:25.6]} 25. Rxe7 {[%clk 0:01:28.2]} 25... Rxe7 {[%clk 0:00:26]} 26. Rxe7
{[%clk 0:01:27.2]} 1-0

[Event "*** Titled Tuesday Blitz"]
[Site "Chess.com"]
[Date "2021.03.16"]
[Round "6"]
[White "zverr1"]
[Black "SanchezKelvin"]
[Result "0-1"]
[WhiteElo "2472"]
[BlackElo "2622"]
[TimeControl "180+1"]
[EndTime "11:04:55 PDT"]
[Termination "SanchezKelvin won by resignation"]

1. d4 {[%clk 0:03:00.9]} 1... Nf6 {[%clk 0:02:59.6]} 2. c4 {[%clk 0:03:01.4]}
2... e6 {[%clk 0:02:59.5]} 3. Nc3 {[%clk 0:03:01.8]} 3... c5 {[%clk 0:02:59.8]}
4. d5 {[%clk 0:03:01.8]} 4... exd5 {[%clk 0:03:00.7]} 5. cxd5 {[%clk 0:03:02.3]}
5... d6 {[%clk 0:03:01.2]} 6. e4 {[%clk 0:03:02.9]} 6... g6 {[%clk 0:03:01.5]}
7. f4 {[%clk 0:03:03.5]} 7... Bg7 {[%clk 0:03:01.4]} 8. Bb5+ {[%clk 0:03:04]}
8... Nfd7 {[%clk 0:03:01.5]} 9. Bd3 {[%clk 0:03:03.7]} 9... O-O {[%clk
0:03:01.3]} 10. Nf3 {[%clk 0:03:03.4]} 10... Na6 {[%clk 0:03:01.2]} 11. O-O
{[%clk 0:03:03.1]} 11... Nc7 {[%clk 0:03:01.3]} 12. Kh1 {[%clk 0:02:59.9]} 12...
a6 {[%clk 0:03:00]} 13. a4 {[%clk 0:03:00.2]} 13... Rb8 {[%clk 0:02:59.2]} 14.
f5 {[%clk 0:03:00.7]} 14... b5 {[%clk 0:02:55.2]} 15. Bf4 {[%clk 0:02:59.6]}
15... c4 {[%clk 0:02:46.6]} 16. Bxd6 {[%clk 0:02:45]} 16... cxd3 {[%clk
0:02:44.7]} 17. e5 {[%clk 0:02:41.1]} 17... b4 {[%clk 0:02:39.3]} 18. Ne4 {[%clk
0:02:27.3]} 18... Nxd5 {[%clk 0:02:34.7]} 19. e6 {[%clk 0:02:26.6]} 19... N7f6
{[%clk 0:02:18.2]} 20. Nxf6+ {[%clk 0:01:52]} 20... Nxf6 {[%clk 0:02:14.1]} 21.
Bxb8 {[%clk 0:01:50.9]} 21... fxe6 {[%clk 0:02:10.9]} 22. fxg6 {[%clk
0:01:45.4]} 22... hxg6 {[%clk 0:02:03]} 23. Ne5 {[%clk 0:01:41.6]} 23... Bb7
{[%clk 0:02:01.3]} 24. Ba7 {[%clk 0:01:30.8]} 24... Qd5 {[%clk 0:01:56]} 25. Qf3
{[%clk 0:01:31.2]} 25... Ne4 {[%clk 0:01:51.2]} 26. Nf7 {[%clk 0:01:29]} 26...
Nd2 {[%clk 0:01:41.4]} 27. Qxd5 {[%clk 0:01:25.6]} 27... Bxd5 {[%clk 0:01:39.5]}
28. Rfd1 {[%clk 0:01:24.8]} 28... Nb3 {[%clk 0:01:38.9]} 29. Ng5 {[%clk
0:01:15.4]} 29... Nxa1 {[%clk 0:01:36.2]} 30. Rxa1 {[%clk 0:01:16.3]} 30... Bxb2
{[%clk 0:01:35.2]} 31. Rb1 {[%clk 0:01:15.6]} 31... Bc3 {[%clk 0:01:34.3]} 32.
Bc5 {[%clk 0:01:14.1]} 32... Rf5 {[%clk 0:01:27.5]} 33. h4 {[%clk 0:01:09]}
33... d2 {[%clk 0:01:24.9]} 34. Kg1 {[%clk 0:00:57]} 34... Bc4 {[%clk
0:01:21.5]} 35. Be3 {[%clk 0:00:53.1]} 35... Be2 {[%clk 0:01:07.4]} 36. Ne4
{[%clk 0:00:50.6]} 36... d1=Q+ {[%clk 0:01:04.2]} 37. Rxd1 {[%clk 0:00:51]}
37... Bxd1 {[%clk 0:01:04.7]} 38. g4 {[%clk 0:00:51.7]} 38... Re5 {[%clk
0:01:03]} 39. Nf6+ {[%clk 0:00:48.6]} 39... Kf7 {[%clk 0:01:02.7]} 0-1

[Event "*** Titled Tuesday Blitz"]
[Site "Chess.com"]
[Date "2021.03.16"]
[Round "6"]
[White "Ranindu2003"]
[Black "Manukyan_Artak"]
[Result "1-0"]
[WhiteElo "2585"]
[BlackElo "2390"]
[TimeControl "180+1"]
[EndTime "11:04:56 PDT"]
[Termination "Ranindu2003 won by resignation"]

1. d4 {[%clk 0:03:00.3]} 1... Nf6 {[%clk 0:02:57.6]} 2. Bf4 {[%clk 0:03:00.6]}
2... c5 {[%clk 0:02:56.2]} 3. e3 {[%clk 0:03:00.5]} 3... d5 {[%clk 0:02:51.2]}
4. Nc3 {[%clk 0:02:58.9]} 4... Bg4 {[%clk 0:02:43.7]} 5. f3 {[%clk 0:02:53.4]}
5... Bf5 {[%clk 0:02:40.1]} 6. dxc5 {[%clk 0:02:42]} 6... e6 {[%clk 0:02:32.9]}
7. Bxb8 {[%clk 0:02:30.1]} 7... Rxb8 {[%clk 0:02:16.2]} 8. Bb5+ {[%clk
0:02:29.7]} 8... Ke7 {[%clk 0:02:16.7]} 9. Nge2 {[%clk 0:02:20.6]} 9... g5
{[%clk 0:01:59.8]} 10. O-O {[%clk 0:02:15.3]} 10... h5 {[%clk 0:01:37.7]} 11. e4
{[%clk 0:01:27.3]} 11... dxe4 {[%clk 0:01:26.3]} 12. fxe4 {[%clk 0:01:28.2]}
12... Qxd1 {[%clk 0:01:25.7]} 13. Raxd1 {[%clk 0:01:24.9]} 13... Bg6 {[%clk
0:00:55.1]} 14. e5 {[%clk 0:01:23.8]} 14... Nd5 {[%clk 0:00:55.2]} 15. Nxd5+
{[%clk 0:01:22.4]} 15... exd5 {[%clk 0:00:56.1]} 16. Rxd5 {[%clk 0:01:22.2]}
16... Bg7 {[%clk 0:00:56.4]} 17. Rd7+ {[%clk 0:01:18.7]} 17... Kf8 {[%clk
0:00:56.3]} 18. e6 {[%clk 0:01:19.2]} 18... a5 {[%clk 0:00:43.7]} 19. e7+ {[%clk
0:01:15.9]} 19... Kg8 {[%clk 0:00:42.5]} 20. Rd8+ {[%clk 0:01:16.4]} 20... Kh7
{[%clk 0:00:42.6]} 21. Rxb8 {[%clk 0:01:16]} 21... Rxb8 {[%clk 0:00:42]} 22.
e8=Q {[%clk 0:01:16.9]} 22... Rxe8 {[%clk 0:00:41.9]} 23. Bxe8 {[%clk
0:01:17.8]} 23... Bxb2 {[%clk 0:00:42.3]} 24. Bxf7 {[%clk 0:01:17.6]} 24... Bxc2
{[%clk 0:00:41.5]} 25. Bxh5 {[%clk 0:01:10]} 25... Bd3 {[%clk 0:00:41.6]} 26.
Kh1 {[%clk 0:01:09]} 26... a4 {[%clk 0:00:38.6]} 27. Rf7+ {[%clk 0:01:01.4]}
27... Kg8 {[%clk 0:00:37.4]} 28. Rxb7 {[%clk 0:00:59.3]} 28... a3 {[%clk
0:00:36.7]} 29. c6 {[%clk 0:00:58.9]} 29... Be4 {[%clk 0:00:36.8]} 30. Bf3
{[%clk 0:00:56.9]} 1-0

[Event "*** Titled Tuesday Blitz"]
[Site "Chess.com"]
[Date "2021.03.16"]
[Round "6"]
[White "Darius321"]
[Black "Smile2005"]
[Result "1/2-1/2"]
[WhiteElo "2288"]
[BlackElo "2426"]
[TimeControl "180+1"]
[EndTime "11:05:04 PDT"]
[Termination "Game drawn by repetition"]

1. e4 {[%clk 0:03:00.9]} 1... d5 {[%clk 0:02:59.5]} 2. exd5 {[%clk 0:02:57.7]}
2... Nf6 {[%clk 0:03:00]} 3. c4 {[%clk 0:02:57]} 3... e6 {[%clk 0:03:00]} 4. d4
{[%clk 0:02:56.9]} 4... exd5 {[%clk 0:03:00.6]} 5. Nc3 {[%clk 0:02:57.4]} 5...
Bb4 {[%clk 0:03:01.3]} 6. Nf3 {[%clk 0:02:56.7]} 6... O-O {[%clk 0:03:01.3]} 7.
c5 {[%clk 0:02:56.1]} 7... Bxc3+ {[%clk 0:03:00.8]} 8. bxc3 {[%clk 0:02:55.6]}
8... b6 {[%clk 0:03:01.5]} 9. cxb6 {[%clk 0:02:53.2]} 9... axb6 {[%clk
0:03:01.8]} 10. Be2 {[%clk 0:02:52.7]} 10... Ba6 {[%clk 0:03:01.3]} 11. O-O
{[%clk 0:02:51]} 11... Re8 {[%clk 0:02:59.9]} 12. Re1 {[%clk 0:02:47.4]} 12...
Nc6 {[%clk 0:02:56]} 13. Bg5 {[%clk 0:02:42.7]} 13... Qd6 {[%clk 0:02:53.1]} 14.
Bxf6 {[%clk 0:02:35.1]} 14... Bxe2 {[%clk 0:02:51.2]} 15. Rxe2 {[%clk 0:02:28]}
15... Qxf6 {[%clk 0:02:51.2]} 16. Rxe8+ {[%clk 0:02:20.4]} 16... Rxe8 {[%clk
0:02:51]} 17. Qa4 {[%clk 0:02:18.1]} 17... g5 {[%clk 0:02:25.5]} 18. Ne5 {[%clk
0:02:14.6]} 18... Re6 {[%clk 0:02:25.3]} 19. Ng4 {[%clk 0:01:09.4]} 19... Qf4
{[%clk 0:02:25]} 20. Ne3 {[%clk 0:01:03.8]} 20... Rf6 {[%clk 0:02:04.4]} 21. Rf1
{[%clk 0:01:00.3]} 21... Qe4 {[%clk 0:01:44.8]} 22. Qb5 {[%clk 0:00:52.7]} 22...
Ne7 {[%clk 0:01:41.2]} 23. Qe8+ {[%clk 0:00:52.1]} 23... Kg7 {[%clk 0:01:40.9]}
24. Nxd5 {[%clk 0:00:49]} 24... Qxd5 {[%clk 0:01:26.3]} 25. Qxe7 {[%clk
0:00:49]} 25... Qxa2 {[%clk 0:01:27.2]} 26. Qxc7 {[%clk 0:00:48.6]} 26... Qb2
{[%clk 0:01:26.4]} 27. h3 {[%clk 0:00:39.7]} 27... b5 {[%clk 0:01:25.9]} 28. Qe5
{[%clk 0:00:35.8]} 28... Qxc3 {[%clk 0:01:24.3]} 29. Qxg5+ {[%clk 0:00:32.1]}
29... Rg6 {[%clk 0:01:24.4]} 30. Qe5+ {[%clk 0:00:29.3]} 30... Kh6 {[%clk
0:01:24]} 31. Qf4+ {[%clk 0:00:23]} 31... Kg7 {[%clk 0:01:23.5]} 32. Qe5+ {[%clk
0:00:16.9]} 32... Kg8 {[%clk 0:01:14.8]} 33. Qe8+ {[%clk 0:00:16.3]} 33... Kg7
{[%clk 0:01:15.1]} 34. Qe5+ {[%clk 0:00:16]} 1/2-1/2

[Event "*** Titled Tuesday Blitz"]
[Site "Chess.com"]
[Date "2021.03.16"]
[Round "6"]
[White "Lady_Nika"]
[Black "Szparu"]
[Result "0-1"]
[WhiteElo "2397"]
[BlackElo "2631"]
[TimeControl "180+1"]
[EndTime "11:05:11 PDT"]
[Termination "Szparu won by resignation"]

1. d4 {[%clk 0:02:55.2]} 1... Nf6 {[%clk 0:02:59.6]} 2. e3 {[%clk 0:02:53.9]}
2... g6 {[%clk 0:02:58.9]} 3. f4 {[%clk 0:02:52.8]} 3... Bg7 {[%clk 0:02:59.2]}
4. Nf3 {[%clk 0:02:53.2]} 4... c5 {[%clk 0:02:58]} 5. c3 {[%clk 0:02:52.8]} 5...
O-O {[%clk 0:02:55.7]} 6. Bd3 {[%clk 0:02:53]} 6... b6 {[%clk 0:02:52.9]} 7. O-O
{[%clk 0:02:52.8]} 7... Bb7 {[%clk 0:02:53.2]} 8. Nbd2 {[%clk 0:02:52.7]} 8...
d6 {[%clk 0:02:51.6]} 9. Qe1 {[%clk 0:02:49.3]} 9... Nbd7 {[%clk 0:02:46.9]} 10.
b3 {[%clk 0:02:49.2]} 10... e5 {[%clk 0:02:46.6]} 11. fxe5 {[%clk 0:02:48.3]}
11... dxe5 {[%clk 0:02:46.9]} 12. dxe5 {[%clk 0:02:48.3]} 12... Ng4 {[%clk
0:02:46.9]} 13. Bb2 {[%clk 0:02:48.5]} 13... Ndxe5 {[%clk 0:02:46.6]} 14. Nxe5
{[%clk 0:02:48.6]} 14... Bxe5 {[%clk 0:02:46.4]} 15. Bc4 {[%clk 0:02:42.1]}
15... Nxh2 {[%clk 0:02:33.6]} 16. Nf3 {[%clk 0:02:30]} 16... Nxf3+ {[%clk
0:02:32.1]} 17. Rxf3 {[%clk 0:02:16.5]} 17... Bxf3 {[%clk 0:02:30.1]} 18. gxf3
{[%clk 0:02:16.1]} 18... Qg5+ {[%clk 0:02:30.1]} 19. Kf1 {[%clk 0:02:15.9]}
19... Bg3 {[%clk 0:02:29.6]} 20. Qe2 {[%clk 0:02:15.5]} 20... Rfe8 {[%clk
0:02:20.3]} 21. e4 {[%clk 0:02:14.7]} 21... h5 {[%clk 0:02:17]} 22. Bc1 {[%clk
0:02:13.1]} 22... Qf6 {[%clk 0:02:15.3]} 23. Kg2 {[%clk 0:01:59.6]} 23... Qh4
{[%clk 0:02:09.3]} 24. Kg1 {[%clk 0:01:57.8]} 24... Be5 {[%clk 0:02:02.5]} 25.
Qg2 {[%clk 0:01:52.6]} 25... Kg7 {[%clk 0:01:49.3]} 26. Be3 {[%clk 0:01:15.1]}
26... Bxc3 {[%clk 0:01:43.2]} 27. Bg5 {[%clk 0:01:14.2]} 27... Qxg5 {[%clk
0:01:26.4]} 28. Qxg5 {[%clk 0:01:13.6]} 28... Bxa1 {[%clk 0:01:26.8]} 29. Qd5
{[%clk 0:01:12.4]} 29... Rf8 {[%clk 0:01:23.4]} 30. e5 {[%clk 0:01:12.6]} 30...
Rad8 {[%clk 0:01:20.8]} 31. Qb7 {[%clk 0:01:10.1]} 31... Bxe5 {[%clk 0:01:17.7]}
32. Qxa7 {[%clk 0:01:10]} 32... h4 {[%clk 0:01:15.6]} 33. Qxb6 {[%clk
0:01:03.7]} 33... h3 {[%clk 0:01:14.8]} 34. f4 {[%clk 0:00:54.6]} 34... Bxf4
{[%clk 0:01:09.3]} 35. Qxc5 {[%clk 0:00:54.7]} 35... h2+ {[%clk 0:01:07.3]} 36.
Kg2 {[%clk 0:00:53.6]} 36... Rd1 {[%clk 0:01:04.2]} 37. Bf1 {[%clk 0:00:43.2]}
37... Rxf1 {[%clk 0:01:01.5]} 38. Kxf1 {[%clk 0:00:42.9]} 38... h1=Q+ {[%clk
0:01:01.4]} 39. Ke2 {[%clk 0:00:43.1]} 39... Qe4+ {[%clk 0:01:01]} 40. Kd1
{[%clk 0:00:42.9]} 40... Qd3+ {[%clk 0:00:59.5]} 41. Ke1 {[%clk 0:00:42]} 41...
Bg3+ {[%clk 0:00:59.4]} 0-1

[Event "*** Titled Tuesday Blitz"]
[Site "Chess.com"]
[Date "2021.03.16"]
[Round "6"]
[White "JordanLoyd2020"]
[Black "chess4life23"]
[Result "0-1"]
[WhiteElo "2488"]
[BlackElo "2298"]
[TimeControl "180+1"]
[EndTime "11:05:11 PDT"]
[Termination "chess4life23 won by checkmate"]

1. d4 {[%clk 0:03:00.9]} 1... Nf6 {[%clk 0:02:59.6]} 2. c4 {[%clk 0:02:57]} 2...
g6 {[%clk 0:02:59.8]} 3. Nc3 {[%clk 0:02:57.1]} 3... d5 {[%clk 0:02:59.9]} 4.
cxd5 {[%clk 0:02:58]} 4... Nxd5 {[%clk 0:03:00.1]} 5. e4 {[%clk 0:02:58.9]} 5...
Nxc3 {[%clk 0:03:00.2]} 6. bxc3 {[%clk 0:02:59.8]} 6... Bg7 {[%clk 0:03:00.5]}
7. Nf3 {[%clk 0:03:00.4]} 7... O-O {[%clk 0:03:00.7]} 8. Be3 {[%clk 0:03:00.5]}
8... c5 {[%clk 0:03:00.7]} 9. Qd2 {[%clk 0:03:00.2]} 9... Qc7 {[%clk 0:03:01]}
10. d5 {[%clk 0:02:56.2]} 10... Rd8 {[%clk 0:02:59]} 11. Rd1 {[%clk 0:02:45.1]}
11... e5 {[%clk 0:02:53.5]} 12. c4 {[%clk 0:02:28.3]} 12... b6 {[%clk
0:02:46.4]} 13. Be2 {[%clk 0:02:21.9]} 13... Nc6 {[%clk 0:02:44.9]} 14. h4
{[%clk 0:02:16]} 14... Bg4 {[%clk 0:02:36.7]} 15. Qc1 {[%clk 0:01:43.1]} 15...
Bxf3 {[%clk 0:02:04.6]} 16. gxf3 {[%clk 0:01:40.6]} 16... Nd4 {[%clk 0:02:04.6]}
17. h5 {[%clk 0:01:39.8]} 17... f5 {[%clk 0:01:57.3]} 18. hxg6 {[%clk
0:01:36.3]} 18... hxg6 {[%clk 0:01:58.2]} 19. Bh6 {[%clk 0:01:29]} 19... f4
{[%clk 0:01:55.4]} 20. Bg5 {[%clk 0:01:07.8]} 20... Re8 {[%clk 0:01:48.4]} 21.
Kd2 {[%clk 0:01:06]} 21... Kf7 {[%clk 0:01:42.9]} 22. Kd3 {[%clk 0:00:45.8]}
22... Rh8 {[%clk 0:01:36.2]} 23. Rxh8 {[%clk 0:00:44.6]} 23... Rxh8 {[%clk
0:01:35.1]} 24. Rh1 {[%clk 0:00:45.1]} 24... Rxh1 {[%clk 0:01:23.5]} 25. Qxh1
{[%clk 0:00:46]} 25... Qd7 {[%clk 0:01:23.3]} 26. Bd1 {[%clk 0:00:19.1]} 26...
b5 {[%clk 0:01:18.8]} 27. Bh6 {[%clk 0:00:13]} 27... bxc4+ {[%clk 0:01:08.7]}
28. Kc3 {[%clk 0:00:13.1]} 28... Qb5 {[%clk 0:00:55.6]} 29. Bxg7 {[%clk
0:00:11.4]} 29... Qb4# {[%clk 0:00:52.4]} 0-1

[Event "*** Titled Tuesday Blitz"]
[Site "Chess.com"]
[Date "2021.03.16"]
[Round "6"]
[White "Andrakhanova"]
[Black "campomania3"]
[Result "0-1"]
[WhiteElo "2233"]
[BlackElo "2171"]
[TimeControl "180+1"]
[EndTime "11:05:18 PDT"]
[Termination "campomania3 won on time"]

1. c4 {[%clk 0:03:00.9]} 1... c6 {[%clk 0:02:58.8]} 2. e4 {[%clk 0:02:59.4]}
2... d5 {[%clk 0:02:58.9]} 3. exd5 {[%clk 0:03:00.3]} 3... cxd5 {[%clk
0:02:58.6]} 4. d4 {[%clk 0:02:59.3]} 4... Nf6 {[%clk 0:02:59]} 5. Nc3 {[%clk
0:02:58.9]} 5... Nc6 {[%clk 0:02:59.4]} 6. Nf3 {[%clk 0:02:50.1]} 6... Be6
{[%clk 0:02:58.6]} 7. cxd5 {[%clk 0:02:48.1]} 7... Bxd5 {[%clk 0:02:57.8]} 8.
Bb5 {[%clk 0:02:43.7]} 8... e6 {[%clk 0:02:53.3]} 9. O-O {[%clk 0:02:30.7]} 9...
Be7 {[%clk 0:02:52.1]} 10. Ne5 {[%clk 0:02:26.5]} 10... O-O {[%clk 0:02:50.6]}
11. Nxd5 {[%clk 0:02:26.6]} 11... Qxd5 {[%clk 0:02:42.9]} 12. Nxc6 {[%clk
0:02:18.9]} 12... bxc6 {[%clk 0:02:40.3]} 13. Be2 {[%clk 0:02:18]} 13... Rfd8
{[%clk 0:02:36.7]} 14. Be3 {[%clk 0:02:15.9]} 14... a6 {[%clk 0:02:27.8]} 15. b3
{[%clk 0:02:14]} 15... c5 {[%clk 0:02:24.7]} 16. Bf3 {[%clk 0:02:12.7]} 16...
Ne4 {[%clk 0:02:22.2]} 17. Qc2 {[%clk 0:02:09.4]} 17... f5 {[%clk 0:02:19.7]}
18. dxc5 {[%clk 0:02:07.3]} 18... Rac8 {[%clk 0:02:06.3]} 19. Rfd1 {[%clk
0:02:02.1]} 19... Qe5 {[%clk 0:02:03.4]} 20. Bxe4 {[%clk 0:01:54.8]} 20... fxe4
{[%clk 0:02:02.3]} 21. Rxd8+ {[%clk 0:01:52.8]} 21... Rxd8 {[%clk 0:01:58.8]}
22. Rd1 {[%clk 0:01:49.8]} 22... Rxd1+ {[%clk 0:01:55.9]} 23. Qxd1 {[%clk
0:01:50.7]} 23... Bxc5 {[%clk 0:01:55.5]} 24. Qd8+ {[%clk 0:01:38.8]} 24... Kf7
{[%clk 0:01:52.8]} 25. Qd7+ {[%clk 0:01:32.6]} 25... Be7 {[%clk 0:01:51.6]} 26.
g3 {[%clk 0:01:28.7]} 26... Qd5 {[%clk 0:01:44.5]} 27. Qxd5 {[%clk 0:01:03.3]}
27... exd5 {[%clk 0:01:43.8]} 28. Kf1 {[%clk 0:01:03.4]} 28... Bf6 {[%clk
0:01:39]} 29. Ke2 {[%clk 0:01:00.3]} 29... d4 {[%clk 0:01:38.5]} 30. Bd2 {[%clk
0:01:00.2]} 30... Ke6 {[%clk 0:01:38.4]} 31. f3 {[%clk 0:01:00]} 31... Kd5
{[%clk 0:01:30.6]} 32. fxe4+ {[%clk 0:00:54.1]} 32... Kxe4 {[%clk 0:01:30.4]}
33. Bf4 {[%clk 0:00:51.6]} 33... Be7 {[%clk 0:01:20.4]} 34. h4 {[%clk
0:00:36.8]} 34... g6 {[%clk 0:01:19.6]} 35. a4 {[%clk 0:00:35.1]} 35... Bxh4
{[%clk 0:01:15.3]} 0-1